bitfinex-derivatives/quotes_BTCF0:USTF0_20241003
["timestamp","ask_amount","ask_price","bid_price","bid_amount"]
[1727941917238,0.223565,61011.0,61010.0,0.01641]
[1727941918336,0.014,61011.0,61010.0,0.081976]
[1727941918538,0.02,61011.0,61010.0,0.081976]
[1727941919135,0.014,61011.0,61010.0,0.081976]
[1727941919432,0.028,61011.0,61010.0,0.081976]
[1727941922233,0.028,61011.0,61010.0,0.572776]
[1727941922942,0.028,61011.0,61010.0,0.442776]
[1727941923933,0.093565,61011.0,61010.0,0.01641]
[1727941924941,0.093565,61011.0,61001.0,0.3608]
[1727941925131,0.093565,61011.0,60992.0,0.06538474]
[1727941925132,0.13,61002.0,60992.0,0.0490025]
[1727941925333,0.06558,60997.0,60991.0,0.1145885]
[1727941925639,0.065581,60996.0,60991.0,0.065586]
[1727941925830,0.065583,60995.0,60991.0,0.065586]
[1727941926844,0.065583,60994.0,60991.0,0.065586]
[1727941927539,0.13,60998.0,60989.0,0.033]
[1727941927739,0.065584,60993.0,60991.0,0.003]
[1727941928038,0.001,60994.0,60991.0,0.133]
[1727941928249,0.065574,61003.0,61002.0,0.0154]
[1727941928540,0.195574,61003.0,61002.0,0.0154]
[1727941929439,0.201574,61003.0,61002.0,0.0154]
[1727941930842,1.054174,61003.0,61002.0,0.01439999]
[1727941931039,0.562374,61003.0,61002.0,0.01439999]
[1727941931635,0.569374,61003.0,61002.0,0.01439999]
[1727941935044,0.3738,61003.0,61002.0,0.01439999]
[1727941935235,0.439373,61003.0,61002.0,0.01439999]
[1727941936345,0.078573,61003.0,61002.0,0.01439999]
[1727941937045,0.208573,61003.0,61002.0,0.01439999]
[1727941939448,0.730673,61003.0,61002.0,0.01439999]
[1727941940747,1.330673,61003.0,61002.0,0.01439999]
[1727941941052,0.065588,60989.0,60988.0,0.0038]
[1727941941248,0.195588,60989.0,60988.0,0.01641]
[1727941942248,0.196588,60989.0,60988.0,0.02041]
[1727941943046,0.197588,60989.0,60988.0,0.02041]
[1727941944850,0.067588,60989.0,60988.0,0.02041]
[1727941945951,0.197588,60989.0,60988.0,0.02041]
[1727941946858,0.065573,61003.0,61002.0,0.01261]
[1727941947848,0.071573,61003.0,61002.0,0.01261]
[1727941948159,0.078573,61003.0,61002.0,0.01261]
[1727941949449,0.013,61003.0,61002.0,0.078184]
[1727941949645,0.013,61003.0,61002.0,0.699984]
[1727941949859,0.013,61003.0,61002.0,1.299984]
[1727941950359,0.013,61003.0,61002.0,1.169984]
[1727941951463,0.013,61003.0,61002.0,2.669984]
[1727941951760,0.013,61003.0,61002.0,2.069984]
[1727941952450,0.013,61003.0,61002.0,1.578184]
[1727941952760,0.013,61003.0,61002.0,2.430784]
[1727941952950,0.013,61003.0,61002.0,3.018174]
[1727941953157,0.00039,61003.0,61002.0,3.018174]
[1727941953855,0.00039,61003.0,61002.0,2.418174]
[1727941954162,0.049554,61012.0,61010.0,0.065565]
[1727941955048,0.0024595,61019.0,61018.0,0.0164]
[1727941955049,0.0680165,61019.0,61018.0,0.0164]
[1727941955245,0.0024595,61019.0,61018.0,0.081957]
[1727941956050,0.1324595,61019.0,61018.0,0.081957]
[1727941956946,0.1464595,61019.0,61018.0,0.081957]
[1727941958260,0.2120155,61019.0,61018.0,0.0164]
[1727941961759,0.2430155,61019.0,61018.0,0.0164]
[1727941961960,0.2430155,61019.0,61005.0,0.0633]
[1727941961961,1.2690995,61019.0,61005.0,0.0303]
[1727941962153,0.13,61006.0,61002.0,0.3608]
[1727941962461,0.065571,61005.0,61002.0,0.3608]
[1727941962660,0.065571,61005.0,61002.0,1.8608]
[1727941963062,0.049171,61005.0,61002.0,0.3608]
[1727941963862,0.032771,61005.0,61002.0,0.3608]
[1727941964261,0.039771,61005.0,61004.0,0.00345877]
[1727941964953,0.432471,61005.0,61004.0,0.00345877]
[1727941965151,0.494271,61005.0,61004.0,0.00345877]
[1727941965955,0.432471,61005.0,61004.0,0.00345877]
[1727941966458,0.924231,61005.0,61004.0,0.00345877]
[1727941967251,0.924231,61005.0,61004.0,0.001]
[1727941968358,1.524231,61005.0,61004.0,0.001]
[1727941969666,0.065577,61000.0,60999.0,0.01641]
[1727941969963,0.065577,61000.0,60985.0,0.0324]
[1727941969964,0.065589,60988.0,60985.0,0.0324]
[1727941970168,0.065589,60988.0,60981.0,0.3608]
[1727941970169,0.065596,60982.0,60981.0,0.3608]
[1727941970863,0.065596,60982.0,60980.0,0.03565977]
[1727941970864,0.065597,60981.0,60980.0,0.03565977]
[1727941972458,0.059597,60981.0,60980.0,0.03565977]
[1727941973265,0.059597,60981.0,60980.0,0.04065977]
[1727941973266,0.060597,60981.0,60980.0,0.04065977]
[1727941973662,0.049697,60981.0,60980.0,0.40145977]
[1727941973966,0.3608,60996.0,60980.0,0.40145977]
[1727941973967,0.065588,60989.0,60986.0,0.01541]
[1727941974175,0.06559,60988.0,60986.0,0.211002]
[1727941974362,0.06559,60988.0,60987.0,1.5]
[1727941974675,0.13,60995.0,60986.0,0.01541]
[1727941974971,0.065591,60987.0,60986.0,0.01541]
[1727941975565,0.065591,60987.0,60986.0,0.01641]
[1727941976365,0.066591,60987.0,60986.0,0.01641]
[1727941977668,0.098591,60987.0,60986.0,0.01641]
[1727941978366,0.10682282,60987.0,60986.0,0.01641]
[1727941978768,0.10582282,60987.0,60986.0,0.01541]
[1727941979560,0.097591,60987.0,60986.0,0.01541]
[1727941979967,0.065591,60987.0,60986.0,0.01541]
[1727941980479,0.065603,60975.0,60974.0,0.0038]
[1727941980769,0.06561,60970.0,60966.0,0.3608]
[1727941980975,0.13,60967.0,60966.0,0.426413]
[1727941981168,0.13,60967.0,60966.0,0.3608]
[1727941981360,0.195612,60967.0,60966.0,0.3608]
[1727941982169,0.195612,60967.0,60959.0,0.39566063]
[1727941982170,0.13,60967.0,60959.0,0.39566063]
[1727941982370,0.3608,60970.0,60959.0,0.39566063]
[1727941982371,0.13,60960.0,60959.0,0.39566063]
[1727941982671,0.3608,60970.0,60959.0,0.39566063]
[1727941982672,0.065615,60964.0,60959.0,0.39566063]
[1727941982872,0.13,60960.0,60959.0,0.39566063]
[1727941983072,0.13,60962.0,60959.0,0.39566063]
[1727941983571,0.066613,60967.0,60961.0,0.065619]
[1727941983878,0.0038,60972.0,60966.0,0.3608]
[1727941984065,0.065602,60976.0,60971.0,0.065608]
[1727941984267,0.13,60974.0,60972.0,0.0333]
[1727941984466,0.13,60974.0,60973.0,1.5]
[1727941984866,0.13,60974.0,60973.0,1.926406]
[1727941985581,0.195605,60974.0,60973.0,1.8608]
[1727941985775,0.195605,60974.0,60973.0,0.3608]
[1727941986374,0.195605,60974.0,60973.0,1.8608]
[1727941986879,0.195605,60974.0,60959.0,0.06808063]
[1727941986880,0.065617,60962.0,60959.0,0.06808063]
[1727941987081,0.049209,60961.0,60959.0,0.06808063]
[1727941987378,0.06562,60960.0,60959.0,0.06808063]
[1727941987776,0.06562,60960.0,60959.0,0.00246063]
[1727941987973,0.13,60962.0,60959.0,0.00246063]
[1727941988368,0.13,60962.0,60959.0,0.01642]
[1727941988680,0.06562,60960.0,60959.0,0.01642]
[1727941989271,0.06562,60960.0,60949.0,0.0038]
[1727941989272,0.06563,60950.0,60949.0,0.0038]
[1727941989475,0.065625,60956.0,60942.0,0.0490025]
[1727941989476,0.13,60951.0,60942.0,0.0490025]
[1727941989679,0.065625,60956.0,60936.0,0.0038]
[1727941989680,0.4908,60943.0,60936.0,0.0038]
[1727941989976,0.065647,60935.0,60934.0,0.08102344]
[1727941990173,0.049227,60935.0,60934.0,0.08102344]
[1727941990373,1.141547,60935.0,60934.0,0.08102344]
[1727941990572,0.065651,60931.0,60930.0,0.06564813]
[1727941990768,0.065651,60931.0,60915.0,0.1296375]
[1727941990769,0.4924,60930.0,60918.0,0.0038]
[1727941990979,0.11357,60922.0,60915.0,0.1296375]
[1727941991167,0.540031,60922.0,60915.0,0.1296375]
[1727941991372,0.065667,60916.0,60915.0,0.1296375]
[1727941991668,0.195667,60916.0,60915.0,0.1296375]
[1727941991872,1.288147,60916.0,60915.0,0.1296375]
[1727941992381,0.06567,60913.0,60911.0,0.14584219]
[1727941993066,0.13,60916.0,60911.0,0.14584219]
[1727941993276,0.13,60916.0,60905.0,0.01643]
[1727941993566,0.2,60906.0,60905.0,0.01643]
[1727941994076,0.0038,60916.0,60905.0,0.01643]
[1727941994276,0.2,60916.0,60905.0,0.01643]
[1727941994480,0.18357,60916.0,60912.0,0.065671]
[1727941994778,0.3608,60922.0,60901.0,0.0038]
[1727941994978,0.0038,60921.0,60906.0,0.2]
[1727941995175,0.2,60919.0,60901.0,0.2038]
[1727941995375,0.2,60919.0,60902.0,1.5]
[1727941995676,0.001,60906.0,60902.0,1.5]
[1727941995885,0.2,60919.0,60902.0,1.5]
[1727941995886,0.0038,60914.0,60903.0,0.49256]
[1727941996077,0.18357,60913.0,60910.0,0.065673]
[1727941996286,0.18357,60913.0,60902.0,1.5]
[1727941996587,0.18357,60913.0,60903.0,0.065681]
[1727941996774,0.18357,60913.0,60910.0,0.065673]
[1727941997176,0.2,60917.0,60913.0,0.06567]
[1727941997377,0.5608,60922.0,60916.0,0.01643]
[1727941997686,0.5608,60922.0,60916.0,0.082097]
[1727941998190,0.5608,60922.0,60919.0,0.065663]
[1727941998383,0.3608,60924.0,60920.0,0.065662]
[1727941998582,0.3608,60924.0,60916.0,0.01643]
[1727941998583,0.3608,60929.0,60926.0,0.065656]
[1727941999089,0.3608,60929.0,60927.0,0.065655]
[1727941999090,0.34437,60929.0,60927.0,0.065655]
[1727941999883,0.55437,60929.0,60918.0,1.5]
[1727942000087,0.35437,60929.0,60918.0,1.5]
[1727942000278,0.204,60924.0,60918.0,1.5]
[1727942000989,0.2,60924.0,60918.0,1.5]
[1727942001382,0.2,60919.0,60912.0,0.3608]
[1727942001585,0.2,60919.0,60918.0,0.002]
[1727942002789,0.8,60919.0,60900.0,0.02065125]
[1727942002991,0.8,60919.0,60896.0,0.01643]
[1727942002992,0.065687,60897.0,60896.0,0.01643]
[1727942003287,0.265687,60897.0,60896.0,0.01643]
[1727942003490,0.262687,60897.0,60896.0,0.01643]
[1727942003691,1.65344,60897.0,60877.0,0.065708]
[1727942003885,1.65344,60897.0,60873.0,0.3608]
[1727942003886,0.2,60880.0,60873.0,0.3608]
[1727942004090,0.065716,60871.0,60858.0,0.065729]
[1727942004283,0.065716,60871.0,60855.0,0.3608]
[1727942004284,0.2,60864.0,60859.0,0.065728]
[1727942004483,0.2,60864.0,60855.0,0.3608]
[1727942004484,0.18357,60864.0,60855.0,0.3608]
[1727942004683,0.16713,60864.0,60855.0,0.3608]
[1727942004994,0.2,60861.0,60855.0,0.3608]
[1727942005194,0.2,60866.0,60855.0,0.3608]
[1727942005401,0.2,60868.0,60858.0,0.06573]
[1727942005702,0.065718,60869.0,60858.0,0.06573]
[1727942005885,0.2,60873.0,60859.0,0.065728]
[1727942006086,0.5608,60878.0,60869.0,0.3608]
[1727942006301,0.3608,60878.0,60874.0,0.01644]
[1727942007202,0.3618,60878.0,60874.0,0.01644]
[1727942007394,0.001,60878.0,60874.0,0.082152]
[1727942007583,0.001,60878.0,60875.0,0.065711]
[1727942008696,0.2,60882.0,60875.0,0.065711]
[1727942009002,0.2,60882.0,60879.0,0.3608]
[1727942010197,0.2,60882.0,60879.0,0.426507]
[1727942010492,0.203,60882.0,60879.0,0.426507]
[1727942010890,0.208,60882.0,60879.0,0.426507]
[1727942011085,0.208,60882.0,60879.0,0.3608]
[1727942011591,0.0896,60882.0,60879.0,0.3608]
[1727942011998,0.0866,60882.0,60879.0,0.3608]
[1727942012199,0.0866,60882.0,60880.0,0.065706]
[1727942012900,0.0876,60882.0,60880.0,0.065706]
[1727942013788,0.0876,60882.0,60881.0,0.0325]
[1727942013789,0.002,60882.0,60881.0,0.0325]
[1727942013987,0.005,60882.0,60881.0,0.098204]
[1727942014790,0.0024646,60886.0,60881.0,0.098204]
[1727942015192,0.0024646,60886.0,60882.0,0.065703]
[1727942016383,0.2,60883.0,60882.0,0.065703]
[1727942016890,0.2,60883.0,60881.0,0.0325]
[1727942017799,0.3608,60882.0,60881.0,0.0325]
[1727942019090,0.3678,60882.0,60881.0,0.0325]
[1727942019795,0.065707,60879.0,60868.0,0.065719]
[1727942020096,0.065707,60879.0,60870.0,0.0314]
[1727942020097,0.2,60877.0,60870.0,0.0314]
[1727942020285,0.2,60877.0,60863.0,0.3608]
[1727942020286,0.06571,60876.0,60863.0,0.3608]
[1727942020490,0.06571,60876.0,60862.0,0.0301]
[1727942020491,0.065724,60863.0,60862.0,0.0301]
[1727942020697,0.049284,60863.0,60862.0,0.0301]
[1727942022100,0.032844,60863.0,60862.0,0.0301]
[1727942022298,0.041844,60863.0,60862.0,0.0301]
[1727942022891,0.052844,60863.0,60862.0,0.0301]
[1727942023090,0.065719,60868.0,60867.0,0.01644]
[1727942023400,0.065714,60872.0,60867.0,0.01644]
[1727942023596,0.265714,60872.0,60867.0,0.01644]
[1727942024003,0.065714,60872.0,60867.0,0.08216]
[1727942024199,0.06571,60876.0,60868.0,0.065719]
[1727942024404,0.3608,60877.0,60867.0,0.01644]
[1727942024405,0.065711,60875.0,60867.0,0.01644]
[1727942024598,0.3608,60882.0,60873.0,0.3608]
[1727942024798,0.0024646,60886.0,60874.0,0.0326]
[1727942025001,0.065698,60887.0,60874.0,0.0326]
[1727942025002,0.0517326,60887.0,60874.0,0.0326]
[1727942025204,0.3608,60890.0,60875.0,1.5]
[1727942025406,0.34437,60890.0,60888.0,0.065697]
[1727942025607,0.34437,60890.0,60889.0,0.0326]
[1727942025806,0.065688,60897.0,60889.0,0.0326]
[1727942025807,0.2,60897.0,60889.0,0.0326]
[1727942026304,0.2,60897.0,60890.0,0.0321]
[1727942026512,0.2,60897.0,60896.0,0.01643]
[1727942026710,0.265687,60897.0,60896.0,0.01643]
[1727942027602,0.3608,60899.0,60896.0,0.01643]
[1727942027808,0.009,60897.0,60896.0,0.083118]
[1727942028310,0.009,60897.0,60896.0,0.01743]
[1727942028513,0.0517102,60908.0,60903.0,0.065681]
[1727942028705,0.2,60911.0,60904.0,0.065679]
[1727942029007,0.2,60911.0,60896.0,0.3628]
[1727942029008,0.065674,60910.0,60905.0,0.065679]
[1727942029200,0.065674,60910.0,60906.0,1.5]
[1727942029404,0.065674,60910.0,60896.0,0.3628]
[1727942029711,0.06812721,60919.0,60914.0,0.01643]
[1727942029712,0.065668,60915.0,60914.0,0.01643]
[1727942030512,0.2,60918.0,60914.0,0.01643]
[1727942030809,0.065663,60920.0,60914.0,0.01643]
[1727942031001,0.2,60925.0,60918.0,0.065665]
[1727942031200,0.2,60925.0,60915.0,0.031]
[1727942031510,0.2,60920.0,60916.0,0.065667]
[1727942032009,0.004,60918.0,60917.0,0.065665]
[1727942032197,0.004,60918.0,60915.0,0.031]
[1727942032198,0.2,60929.0,60928.0,0.01096723]
[1727942032401,0.06565,60933.0,60928.0,0.07662123]
[1727942032605,0.2,60934.0,60928.0,0.01096723]
[1727942032800,0.065645,60937.0,60931.0,0.065651]
[1727942033000,0.2,60939.0,60931.0,0.065651]
[1727942033223,0.065647,60935.0,60931.0,0.065651]
[1727942033407,0.2,60939.0,60928.0,0.01096723]
[1727942033706,0.265642,60939.0,60932.0,0.06565]
[1727942034099,0.01,60937.0,60932.0,0.06565]
[1727942034501,0.2,60934.0,60928.0,0.07862123]
[1727942034711,0.2,60934.0,60929.0,0.065653]
[1727942035112,0.2,60934.0,60930.0,0.065651]
[1727942035504,0.2,60934.0,60932.0,0.001]
[1727942035908,0.224,60939.0,60932.0,0.001]
[1727942036110,0.224,60939.0,60932.0,0.067649]
[1727942036111,0.006,60937.0,60932.0,0.067649]
[1727942036617,0.006,60937.0,60932.0,0.002]
[1727942036804,0.21170058,60939.0,60935.0,0.065646]
[1727942037001,0.01170058,60939.0,60937.0,0.065644]
[1727942037204,0.00073058,60939.0,60937.0,0.065644]
[1727942037404,0.626437,60944.0,60937.0,0.065644]
[1727942037802,0.065638,60943.0,60937.0,0.065644]
[1727942038102,0.02,60939.0,60937.0,0.066644]
[1727942038506,0.02,60939.0,60937.0,0.001]
[1727942038818,0.00358,60939.0,60938.0,0.065643]
[1727942039007,0.5608,60944.0,60939.0,0.065642]
[1727942039008,0.35838,60944.0,60939.0,0.065642]
[1727942039519,0.35838,60944.0,60941.0,0.06564]
[1727942039714,0.34196,60944.0,60941.0,0.06564]
[1727942040022,0.34196,60944.0,60937.0,0.001]
[1727942040317,0.33554,60944.0,60943.0,0.065638]
[1727942040619,0.32554,60944.0,60943.0,0.065638]
[1727942040921,0.3608,60951.0,60943.0,0.065638]
[1727942040922,0.265627,60953.0,60947.0,0.065633]
[1727942041104,0.065627,60953.0,60943.0,0.3608]
[1727942041311,0.265622,60958.0,60952.0,0.01642]
[1727942041618,0.065623,60957.0,60952.0,0.01642]
[1727942042315,0.065623,60957.0,60952.0,0.082048]
[1727942042507,0.065623,60957.0,60953.0,1.5]
[1727942042712,0.2,60958.0,60953.0,1.5]
[1727942042908,0.065624,60956.0,60953.0,1.565627]
[1727942043618,0.06562,60961.0,60953.0,1.5]
[1727942043816,0.06562,60961.0,60953.0,1.5334]
[1727942044321,0.06562,60961.0,60953.0,1.5324]
[1727942044625,0.06562,60961.0,60953.0,1.5334]
[1727942044920,0.06562,60961.0,60957.0,0.065623]
[1727942045826,0.065614,60965.0,60955.0,0.2]
[1727942046018,0.0038,60969.0,60960.0,0.2]
[1727942046215,0.065606,60973.0,60972.0,0.01016999]
[1727942046416,0.00246111,60974.0,60972.0,0.01016999]
[1727942046923,0.0038,60987.0,60972.0,0.01016999]
[1727942046924,0.065596,60982.0,60972.0,0.01016999]
[1727942047229,0.065596,60982.0,60976.0,0.065601]
[1727942047413,0.065591,60987.0,60975.0,0.2]
[1727942047720,0.055421,60987.0,60986.0,0.3608]
[1727942047914,0.26938,60997.0,60986.0,0.3608]
[1727942047915,0.2,60997.0,60986.0,0.3608]
[1727942048113,0.065585,60992.0,60990.0,0.01641]
[1727942048312,0.065586,60991.0,60990.0,0.01641]
[1727942049320,0.065586,60991.0,60986.0,0.001]
[1727942049321,0.065591,60987.0,60986.0,0.001]
[1727942049522,0.265591,60987.0,60986.0,0.001]
[1727942050025,0.626391,60987.0,60986.0,0.001]
[1727942050623,0.0656,60978.0,60973.0,0.0306]
[1727942051331,0.5608,60987.0,60976.0,0.065602]
[1727942051522,0.065596,60982.0,60976.0,0.065602]
[1727942052833,0.065596,60982.0,60978.0,0.0656]
[1727942053826,0.426391,60987.0,60980.0,0.065598]
[1727942054031,0.426391,60987.0,60973.0,0.0306]
[1727942054230,0.065592,60986.0,60979.0,0.065598]
[1727942054531,0.049177,60991.0,60987.0,0.06559]
[1727942054729,0.395375,61002.0,60980.0,0.2]
[1727942054730,0.065583,60994.0,60990.0,0.3608]
[1727942054932,0.049173,60994.0,60990.0,0.3608]
[1727942055319,0.049173,60994.0,60990.0,0.426387]
[1727942055626,0.065579,60998.0,60997.0,0.01641]
[1727942057526,0.065579,60998.0,60997.0,0.01841]
[1727942057819,0.065573,61004.0,60997.0,0.01841]
[1727942058033,0.426373,61003.0,60997.0,0.01841]
[1727942058239,0.0016,61003.0,61002.0,0.065574]
[1727942058421,0.0307,61019.0,60999.0,1.8608]
[1727942058422,0.2,61005.0,60999.0,1.8608]
[1727942058627,0.065577,61000.0,60999.0,1.8608]
[1727942059128,0.065577,61000.0,60999.0,0.3608]
[1727942060434,0.065577,61000.0,60999.0,0.3618]
[1727942061023,0.065577,61000.0,60999.0,0.3628]
[1727942064329,0.065571,61005.0,60999.0,0.428378]
[1727942065031,0.065577,61000.0,60999.0,0.3628]
[1727942066038,0.065577,61000.0,60999.0,0.002]
[1727942066234,0.557377,61000.0,60999.0,0.002]
[1727942066432,1.157377,61000.0,60999.0,0.002]
[1727942066637,0.557377,61000.0,60999.0,0.002]
[1727942067330,0.918177,61000.0,60999.0,0.002]
[1727942067730,0.9385054,61000.0,60999.0,0.002]
[1727942068146,0.918177,61000.0,60999.0,0.002]
[1727942069641,0.426377,61000.0,60999.0,0.002]
[1727942069834,0.918177,61000.0,60999.0,0.002]
[1727942070142,0.426377,61000.0,60999.0,0.002]
[1727942070932,0.426377,61000.0,60997.0,0.01838]
[1727942070933,0.065579,60998.0,60997.0,0.01838]
[1727942072243,0.065579,60998.0,60997.0,0.01938]
[1727942073035,0.3608,61005.0,60997.0,0.01938]
[1727942073342,0.3608,61005.0,61002.0,0.065573]
[1727942073544,0.3608,61005.0,60999.0,0.2]
[1727942073545,0.3608,61005.0,61004.0,0.065572]
[1727942073743,0.428004,61013.0,61006.0,0.06557]
[1727942073940,0.426364,61013.0,61006.0,0.06557]
[1727942074141,0.065568,61008.0,61006.0,0.06557]
[1727942074451,0.426364,61013.0,61006.0,0.06557]
[1727942074452,0.065569,61007.0,61006.0,0.06557]
[1727942075036,0.065571,61005.0,61004.0,0.001]
[1727942075237,0.065575,61001.0,61000.0,1.50084]
[1727942075446,0.065575,61001.0,60996.0,0.06558]
[1727942076450,0.2,61018.0,61010.0,0.01641]
[1727942076745,0.065565,61011.0,61010.0,0.01641]
[1727942077441,0.3608,61019.0,61011.0,0.065564]
[1727942077647,0.3608,61019.0,61012.0,0.0309]
[1727942077648,0.065561,61015.0,61012.0,0.0309]
[1727942078847,0.426356,61019.0,61014.0,0.065562]
[1727942079057,0.426356,61019.0,61015.0,0.06556]
[1727942079244,0.3608,61019.0,61012.0,0.0309]
[1727942079552,0.3608,61019.0,61012.0,0.0319]
[1727942079753,0.2,61014.0,61012.0,0.001]
[1727942079950,0.065563,61013.0,61012.0,0.001]
[1727942080542,0.065564,61012.0,61011.0,0.001]
[1727942080743,0.426364,61012.0,61011.0,0.001]
[1727942081348,0.426364,61012.0,61010.0,0.01641]
[1727942081349,0.065565,61011.0,61010.0,0.01641]
[1727942083553,0.065565,61011.0,61010.0,0.01741]
[1727942084053,0.065565,61011.0,61010.0,0.01841]
[1727942085149,0.065565,61011.0,61010.0,0.01741]
[1727942085349,0.065565,61011.0,61010.0,0.01841]
[1727942086250,0.065565,61011.0,60997.0,0.00197]
[1727942086251,0.065579,60998.0,60997.0,0.00197]
[1727942086446,0.265579,60998.0,60997.0,0.00197]
[1727942086646,0.065584,60993.0,60992.0,0.01641]
[1727942086847,0.265584,60993.0,60992.0,0.01641]
[1727942087350,0.30835122,60993.0,60992.0,0.01641]
[1727942087752,0.065593,60985.0,60984.0,0.00245939]
[1727942090458,0.065593,60985.0,60984.0,0.00345939]
[1727942092250,0.3608,60993.0,60984.0,0.01986939]
[1727942092446,0.3608,60993.0,60986.0,0.2]
[1727942092650,0.065582,60996.0,60991.0,0.3608]
[1727942092961,0.3608,61000.0,60992.0,0.0632]
[1727942093154,0.065582,60995.0,60992.0,0.0632]
[1727942093751,0.426378,61000.0,60992.0,0.2632]
[1727942093957,0.065578,60999.0,60998.0,0.01641]
[1727942094157,0.3608,61000.0,60998.0,0.01641]
[1727942096060,0.00245962,61006.0,60998.0,0.01641]
[1727942096248,0.065571,61005.0,61001.0,0.2]
[1727942096454,0.00245962,61006.0,61005.0,0.065571]
[1727942096648,0.065567,61010.0,61001.0,0.2]
[1727942096649,0.065567,61009.0,61006.0,0.06557]
[1727942096956,0.065567,61009.0,61007.0,0.065569]
[1727942097162,0.065567,61009.0,61008.0,0.0319]
[1727942098151,0.2,61011.0,61007.0,0.001]
[1727942098152,0.065568,61008.0,61007.0,0.001]
[1727942098353,0.265568,61008.0,61007.0,0.001]
[1727942099561,0.265568,61008.0,60997.0,1.5319]
[1727942099562,0.2,61008.0,60997.0,1.5319]
[1727942099865,0.065578,60999.0,60997.0,1.5329]
[1727942100769,0.065578,60999.0,60998.0,0.01741]
[1727942103764,0.065578,60999.0,60998.0,0.01641]
[1727942105971,0.065578,60999.0,60998.0,0.01741]
[1727942106667,0.065578,60999.0,60998.0,0.01641]
[1727942107168,0.065578,60999.0,60998.0,0.01741]
[1727942107169,0.757378,60999.0,60998.0,0.01741]
[1727942107368,0.757378,60999.0,60983.0,0.3919]
[1727942107369,0.065593,60985.0,60983.0,0.3919]
[1727942107675,0.265593,60985.0,60983.0,0.3919]
[1727942108172,0.065585,60993.0,60992.0,0.01641]
[1727942109967,0.065585,60993.0,60992.0,0.01741]
[1727942111163,0.557465,60993.0,60992.0,0.01741]
[1727942112874,0.065585,60993.0,60992.0,0.01741]
[1727942121474,0.10743767,60993.0,60992.0,0.01741]
[1727942122271,0.23743767,60993.0,60992.0,0.01741]
[1727942123173,0.195585,60993.0,60992.0,0.01741]
[1727942123475,0.195585,60993.0,60992.0,0.00865036]
[1727942123476,1.69009778,60993.0,60992.0,0.00865036]
[1727942123678,1.7385075,60993.0,60992.0,3.6e-07]
[1727942123871,1.75945074,60993.0,60992.0,3.6e-07]
[1727942125068,1.15945074,60993.0,60992.0,3.6e-07]
[1727942125277,0.48896225,60993.0,60992.0,3.6e-07]
[1727942125478,0.44732824,60993.0,60992.0,3.6e-07]
[1727942126679,1.11101252,60993.0,60992.0,3.6e-07]
[1727942127079,0.065591,60987.0,60986.0,0.01641]
[1727942127281,0.065593,60985.0,60984.0,0.00245939]
[1727942127676,1.37563764,60985.0,60984.0,0.00245939]
[1727942127989,0.557514,60984.0,60983.0,0.71997839]
[1727942128285,0.59931828,60984.0,60983.0,0.71997839]
[1727942128488,1.19931828,60984.0,60983.0,0.71997839]
[1727942129182,1.19931828,60984.0,60983.0,0.37850038]
[1727942130873,1.75707467,60984.0,60983.0,0.0953781]
[1727942131082,1.75707467,60984.0,60969.0,0.01641]
[1727942131083,1.62858454,60984.0,60969.0,0.01641]
[1727942131275,0.195609,60970.0,60969.0,0.01641]
[1727942132282,0.195609,60970.0,60969.0,0.02341]
[1727942132477,0.195609,60970.0,60969.0,0.03141]
[1727942132880,0.195609,60970.0,60969.0,0.02441]
[1727942133183,0.195609,60970.0,60969.0,0.03141]
[1727942135279,0.195609,60970.0,60961.0,0.0024605]
[1727942135280,0.0525395,60958.0,60941.0,0.04899433]
[1727942135493,0.0525395,60958.0,60930.0,0.0322]
[1727942135494,0.4908,60943.0,60930.0,0.0322]
[1727942135785,0.13,60931.0,60930.0,0.0322]
[1727942136383,0.13,60935.0,60930.0,0.0322]
[1727942136594,0.13,60935.0,60930.0,0.0462]
[1727942137789,0.2,60937.0,60930.0,0.0462]
[1727942137981,0.2,60937.0,60930.0,0.0532]
[1727942138188,0.2,60937.0,60930.0,0.0452]
[1727942138189,0.001,60931.0,60930.0,0.0452]
[1727942138488,0.2,60937.0,60930.0,0.0452]
[1727942138692,0.005,60935.0,60930.0,0.0322]
[1727942138992,0.008,60935.0,60930.0,0.0322]
[1727942139187,0.2,60937.0,60930.0,0.0322]
[1727942139492,0.005,60931.0,60930.0,0.0322]
[1727942139679,0.2,60937.0,60930.0,0.0332]
[1727942139990,0.005,60935.0,60930.0,0.0342]
[1727942140484,0.065645,60937.0,60930.0,0.0342]
[1727942140687,0.2,60942.0,60930.0,0.0342]
[1727942141086,0.2,60942.0,60930.0,0.0332]
[1727942141286,0.2,60942.0,60930.0,0.0322]
[1727942141478,0.002,60937.0,60930.0,0.0322]
[1727942141984,0.06564,60941.0,60932.0,0.06565]
[1727942142182,0.065645,60937.0,60932.0,0.06565]
[1727942142578,0.065645,60937.0,60933.0,1.5]
[1727942144186,0.3608,60940.0,60932.0,0.06565]
[1727942144389,0.065646,60936.0,60932.0,0.06565]
[1727942144688,0.065646,60936.0,60933.0,1.5]
[1727942145479,0.2,60942.0,60933.0,1.5]
[1727942145679,0.02056196,60945.0,60933.0,1.5]
[1727942145680,0.065646,60936.0,60933.0,1.5]
[1727942146682,0.065647,60935.0,60933.0,1.5]